{"text_format":"1","workbook":"xlsx","n_sheets":7,"sheets":["DRESSAGE","CSO","CROSS","EQUIFUN","ATTELAGE","COMBINE","EQUIFUN CLASSEMENT"],"not_rendered":{"charts":0,"images":0,"macros":1,"external_links":0,"defined_names":3,"comments":0,"pivot_tables":0},"unopened":[],"bounds":{"document_bytes":16777216,"sheet_cells":100000,"rows_first":2000,"rows_last":500,"rows_between":2000,"halvings":0,"cell_chars":16384,"cell_head_chars":4096},"cells_cut":0,"cells_raw":0,"read":"whole","date_system":"1900"}

{"sheet":"DRESSAGE","index":0,"n_rows":70,"n_cols":10,"rows_kept":70,"cut":false,"hidden":false,"merged":[[0,0,0,9],[1,0,1,9],[2,0,2,9]]}
["CHAMPIONNAT DE FRANCE SPORT ADAPTE EQUITATION"]
["19 et 20 JUIN 2014 - LES RENES DE LA VIE - SAINT LO"]
["DRESSAGE - DIVISION 2 VETERANS"]
[]
[]
[null,"Nombre de partants :",{"$f":"COUNTA(B8:B70)","v":11}]
["Dossard","Cavalier","Cheval","Association","Juge 1","Pénal.","Juge 2","Pénal.","TOTAL","Classement"]
[2,"COULM Sébastien","PADMA","APAPSH Gournay en bray",106,null,81,null,{"$f":"(E8-F8+G8-H8)/2","v":93.5},3]
[3,"DESGREE Christophe","AGON 2","ASES La source",78,null,79,null,78.5,8]
[4,"HALLER François","KACHEMIRE","ASCETH Mulhouse",100,null,111,null,105.5,2]
[5,"MARTINS Hervé","DIABOLO","ASES La source",81,null,82,null,81.5,7]
[6,"MONDIN François","DGUBA","Les rênes de la vie (CPFA Granville)",95,null,89,null,92,5]
[7,"MOREL Joël","AGON 2","Association Sportive des Vallées",108,null,116,null,112,1]
[8,"TRAVERS Patrick","KABAN DU FEUGRET","ASES La source",72,null,83,null,77.5,9]
[9,"LE CAM Kathie","DIABOLO","CLAP 22",94,2,87,2,88.5,6]
[13,"BOISDRON François","DGUBA","ASFAA Foyer Renoir",89,null,96,null,92.5,4]
[14,"GARDIEN Nolwenn","AGON 2","L'envol",80,null,56,null,68,10]
[1,"BURR Daniel","KABAN DU FEUGRET","ASCETH Mulhouse","E",null,"E",null,0]
[null,null,null,null,null,null,null,null,{"$f":"(E19-F19+G19-H19)/2","v":0}]
[null,null,null,null,null,null,null,null,0]
[null,null,null,null,null,null,null,null,0]
[null,null,null,null,null,null,null,null,0]
[null,null,null,null,null,null,null,null,0]
[null,null,null,null,null,null,null,null,0]
[null,null,null,null,null,null,null,null,0]
[null,null,null,null,null,null,null,null,0]
[null,null,null,null,null,null,null,null,0]
[null,null,null,null,null,null,null,null,0]
[null,null,null,null,null,null,null,null,0]
[null,null,null,null,null,null,null,null,0]
[null,null,null,null,null,null,null,null,0]
[null,null,null,null,null,null,null,null,0]
[null,null,null,null,null,null,null,null,0]
[null,null,null,null,null,null,null,null,0]
[null,null,null,null,null,null,null,null,0]
[null,null,null,null,null,null,null,null,0]
[null,null,null,null,null,null,null,null,0]
[null,null,null,null,null,null,null,null,0]
[null,null,null,null,null,null,null,null,0]
[null,null,null,null,null,null,null,null,0]
[null,null,null,null,null,null,null,null,0]
[null,null,null,null,null,null,null,null,0]
[null,null,null,null,null,null,null,null,0]
[null,null,null,null,null,null,null,null,0]
[null,null,null,null,null,null,null,null,0]
[null,null,null,null,null,null,null,null,0]
[null,null,null,null,null,null,null,null,0]
[null,null,null,null,null,null,null,null,0]
[null,null,null,null,null,null,null,null,0]
[null,null,null,null,null,null,null,null,0]
[null,null,null,null,null,null,null,null,0]
[null,null,null,null,null,null,null,null,0]
[null,null,null,null,null,null,null,null,0]
[null,null,null,null,null,null,null,null,0]
[null,null,null,null,null,null,null,null,0]
[null,null,null,null,null,null,null,null,0]
[null,null,null,null,null,null,null,null,0]
[null,null,null,null,null,null,null,null,0]
[null,null,null,null,null,null,null,null,0]
[null,null,null,null,null,null,null,null,0]
[null,null,null,null,null,null,null,null,0]
[null,null,null,null,null,null,null,null,0]
[null,null,null,null,null,null,null,null,0]
[null,null,null,null,null,null,null,null,0]
[null,null,null,null,null,null,null,null,0]
[null,null,null,null,null,null,null,null,0]
[null,null,null,null,null,null,null,null,0]
[null,null,null,null,null,null,null,null,0]
[null,null,null,null,null,null,null,null,0]
[null,null,null,null,null,null,null,null,0]

{"sheet":"CSO","index":1,"n_rows":68,"n_cols":8,"rows_kept":68,"cut":false,"hidden":false,"merged":[[0,0,0,7],[1,0,1,7],[2,0,2,7]]}
["CHAMPIONNAT DE FRANCE SPORT ADAPTE EQUITATION"]
["19 et 20 JUIN 2014 - LES RENES DE LA VIE - SAINT LO"]
["CSO - DIVISION 2 VETERANS"]
[]
[]
[null,"Nombre de partants :",{"$f":"COUNTA(B8:B68)","v":9}]
["Dossard","Cavalier","Cheval","Association","Pénalités piste","Note style","TOTAL","Classement"]
[1,"BURR Daniel","KABAN DU FEUGRET","ASCETH Mulhouse",0,34,{"$f":"F8-E8","v":34},4]
[2,"COULM Sébastien","PADMA","APAPSH Gournay en bray",4,29,25,9]
[4,"HALLER François","KACHEMIRE","ASCETH Mulhouse",0,33,33,8]
[6,"MONDIN François","DGUBA","Les rênes de la vie (CPFA Granville)",0,34,34,4]
[7,"MOREL Joël","AGON 2","Association Sportive des Vallées",0,35.5,35.5,2]
[10,"SIMON Philippe","AGON 2","ASFAA Foyer Renoir",0,39.5,39.5,1]
[11,"MATORVIEZORNAVA Frédéric","HYASMINE DES MARES","ASFAA Foyer Renoir",0,34,34,4]
[12,"REAU Patrick","DGUBA","ASFAA Foyer Renoir",0,34,34,4]
[14,"GARDIEN Nolwenn","AGON 2","L'envol",0,34.5,34.5,3]
[null,null,null,null,null,null,{"$f":"F17-E17","v":0}]
[null,null,null,null,null,null,0]
[null,null,null,null,null,null,0]
[null,null,null,null,null,null,0]
[null,null,null,null,null,null,0]
[null,null,null,null,null,null,0]
[null,null,null,null,null,null,0]
[null,null,null,null,null,null,0]
[null,null,null,null,null,null,0]
[null,null,null,null,null,null,0]
[null,null,null,null,null,null,0]
[null,null,null,null,null,null,0]
[null,null,null,null,null,null,0]
[null,null,null,null,null,null,0]
[null,null,null,null,null,null,0]
[null,null,null,null,null,null,0]
[null,null,null,null,null,null,0]
[null,null,null,null,null,null,0]
[null,null,null,null,null,null,0]
[null,null,null,null,null,null,0]
[null,null,null,null,null,null,0]
[null,null,null,null,null,null,0]
[null,null,null,null,null,null,0]
[null,null,null,null,null,null,0]
[null,null,null,null,null,null,0]
[null,null,null,null,null,null,0]
[null,null,null,null,null,null,0]
[null,null,null,null,null,null,0]
[null,null,null,null,null,null,0]
[null,null,null,null,null,null,0]
[null,null,null,null,null,null,0]
[null,null,null,null,null,null,0]
[null,null,null,null,null,null,0]
[null,null,null,null,null,null,0]
[null,null,null,null,null,null,0]
[null,null,null,null,null,null,0]
[null,null,null,null,null,null,0]
[null,null,null,null,null,null,0]
[null,null,null,null,null,null,0]
[null,null,null,null,null,null,0]
[null,null,null,null,null,null,0]
[null,null,null,null,null,null,0]
[null,null,null,null,null,null,0]
[null,null,null,null,null,null,0]
[null,null,null,null,null,null,0]
[null,null,null,null,null,null,0]
[null,null,null,null,null,null,0]
[null,null,null,null,null,null,0]
[null,null,null,null,null,null,0]
[null,null,null,null,null,null,0]
[null,null,null,null,null,null,0]
[null,null,null,null,null,null,0]

{"sheet":"CROSS","index":2,"n_rows":40,"n_cols":11,"rows_kept":40,"cut":false,"hidden":false,"merged":[[0,0,0,10],[1,0,1,10],[2,0,2,10]]}
["CHAMPIONNAT DE FRANCE SPORT ADAPTE EQUITATION"]
["19 et 20 JUIN 2014 - LES RENES DE LA VIE - SAINT LO"]
["CROSS - DIVISION 2 JEUNES"]
[]
[]
[null,"Nombre de partants :",{"$f":"COUNTA(C8:C40)","v":0},null,"Tps maxi :",83]
["Dossard","Cavalier","Cheval","Association","Pénalités cross","Temps cross","Pénalités Tps","Total Pénalités","Note style","TOTAL","Classement"]
[null,null,null,null,null,null,{"$f":"IF(($F$6-F8)>15,10,IF(($F$6-F8)<0,($F$6-F8)*-0.5,0))","v":10},{"$f":"E8+G8","v":10},null,{"$f":"I8-H8","v":-10}]
[null,null,null,null,null,null,10,10,null,-10]
[null,null,null,null,null,null,10,10,null,-10]
[null,null,null,null,null,null,10,10,null,-10]
[null,null,null,null,null,null,10,10,null,-10]
[null,null,null,null,null,null,10,10,null,-10]
[null,null,null,null,null,null,10,10,null,-10]
[null,null,null,null,null,null,10,10,null,-10]
[null,null,null,null,null,null,10,10,null,-10]
[null,null,null,null,null,null,10,10,null,-10]
[null,null,null,null,null,null,10,10,null,-10]
[null,null,null,null,null,null,10,10,null,-10]
[null,null,null,null,null,null,10,10,null,-10]
[null,null,null,null,null,null,10,10,null,-10]
[null,null,null,null,null,null,10,10,null,-10]
[null,null,null,null,null,null,10,10,null,-10]
[null,null,null,null,null,null,10,10,null,-10]
[null,null,null,null,null,null,10,10,null,-10]
[null,null,null,null,null,null,10,10,null,-10]
[null,null,null,null,null,null,10,10,null,-10]
[null,null,null,null,null,null,10,10,null,-10]
[null,null,null,null,null,null,10,10,null,-10]
[null,null,null,null,null,null,10,10,null,-10]
[null,null,null,null,null,null,10,10,null,-10]
[null,null,null,null,null,null,10,10,null,-10]
[null,null,null,null,null,null,10,10,null,-10]
[null,null,null,null,null,null,10,10,null,-10]
[null,null,null,null,null,null,10,10,null,-10]
[null,null,null,null,null,null,10,10,null,-10]
[null,null,null,null,null,null,10,10,null,-10]
[null,null,null,null,null,null,10,10,null,-10]
[null,null,null,null,null,null,10,10,null,-10]
[null,null,null,null,null,null,10,10,null,-10]

{"sheet":"EQUIFUN","index":3,"n_rows":45,"n_cols":10,"rows_kept":45,"cut":false,"hidden":false,"merged":[[0,0,0,9],[1,0,1,9],[2,0,2,9]]}
["CHAMPIONNAT DE FRANCE SPORT ADAPTE EQUITATION"]
["19 et 20 JUIN 2014 - LES RENES DE LA VIE - SAINT LO"]
["EQUIFUN - DIVISION 2 VETERANS"]
[]
[]
[null,"Nombre de partants :",{"$f":"COUNTA(B8:B73)","v":14}]
["Dossard","Cavalier","Cheval","Association","Juge 1","Juge 2","Pénalités","TOTAL","Temps","Classement"]
[1,"BURR Daniel","KABAN DU FEUGRET","ASCETH Mulhouse",72,72,2,{"$f":"E8+F8-G8","v":142}]
[2,"COULM Sébastien",0,"APAPSH Gournay en bray",94,99,null,193]
[3,"DESGREE Christophe","PADMA","ASES La source",79,82,2,159]
[4,"HALLER François","KACHEMIRE","ASCETH Mulhouse",78,80,2,156]
[5,"MARTINS Hervé","DIABOLO","ASES La source",69,76,2,143]
[6,"MONDIN François","DGUBA","Les rênes de la vie (CPFA Granville)",98,98,null,196]
[7,"MOREL Joël","AGON 2","Association Sportive des Vallées",81,84,null,165]
[8,"TRAVERS Patrick","KABAN DU FEUGRET","ASES La source",66,67,4,{"$f":"E15+F15-G15","v":129}]
[9,"LE CAM Kathie",0,"CLAP 22",null,null,null,0,null,"NP"]
[10,"SIMON Philippe",0,"ASFAA Foyer Renoir",null,null,null,0,null,"NP"]
[11,"MATORVIEZORNAVA Frédéric",0,"ASFAA Foyer Renoir",null,null,null,0,null,"NP"]
[12,"REAU Patrick",0,"ASFAA Foyer Renoir",null,null,null,0,null,"NP"]
[13,"BOISDRON François",0,"ASFAA Foyer Renoir",null,null,null,0,null,"NP"]
[14,"GARDIEN Nolwenn","AGON 2","L'envol",92,90,null,182]
[null,null,null,null,null,null,null,0]
[null,null,null,null,null,null,null,0]
[null,null,null,null,null,null,null,0]
[null,null,null,null,null,null,null,0]
[null,null,null,null,null,null,null,0]
[null,null,null,null,null,null,null,0]
[null,null,null,null,null,null,null,0]
[null,null,null,null,null,null,null,0]
[null,null,null,null,null,null,null,0]
[null,null,null,null,null,null,null,0]
[null,null,null,null,null,null,null,0]
[null,null,null,null,null,null,null,0]
[null,null,null,null,null,null,null,0]
[null,null,null,null,null,null,null,0]
[null,null,null,null,null,null,null,0]
[null,null,null,null,null,null,null,0]
[null,null,null,null,null,null,null,0]
[null,null,null,null,null,null,null,0]
[null,null,null,null,null,null,null,0]
[null,null,null,null,null,null,null,0]
[null,null,null,null,null,null,null,0]
[null,null,null,null,null,null,null,{"$f":"E43+F43-G43","v":0}]
[null,null,null,null,null,null,null,{"$f":"E44+F44-G44","v":0}]
[null,null,null,null,null,null,null,{"$f":"E45+F45-G45","v":0}]

{"sheet":"ATTELAGE","index":4,"n_rows":40,"n_cols":16,"rows_kept":40,"cut":false,"hidden":false,"merged":[[0,0,0,15],[1,0,1,15],[2,0,2,15]]}
["CHAMPIONNAT DE FRANCE SPORT ADAPTE EQUITATION"]
["19 et 20 JUIN 2014 - LES RENES DE LA VIE - SAINT LO"]
["ATTELAGE - DIVISION 2 JEUNES"]
[]
[]
[null,"Nombre de partants :",{"$f":"COUNTA(C8:C40)","v":0},null,null,null,null,null,"Tps maxi :",173]
["Dossard","Cavalier","Cheval","Association","Pénalités Piste","Pénalités Marathon","Note style cavalier","Total 1ère Manche","Pénalités Piste","Pénalités Marathon","Note style cavalier","Temps réalisé","Pénalités Temps","Total 2ème Manche","TOTAL FINAL","Classement"]
[null,null,null,null,null,null,null,{"$f":"G8-F8-E8","v":0},null,null,null,null,{"$f":"IF(L8>$J$6,(L8-$J$6)*0.5,0)","v":0},{"$f":"K8-J8-I8-M8","v":0},{"$f":"H8+N8","v":0}]
[null,null,null,null,null,null,null,0,null,null,null,null,0,0,0]
[null,null,null,null,null,null,null,0,null,null,null,null,0,0,0]
[null,null,null,null,null,null,null,0,null,null,null,null,0,0,0]
[null,null,null,null,null,null,null,0,null,null,null,null,0,0,0]
[null,null,null,null,null,null,null,0,null,null,null,null,0,0,0]
[null,null,null,null,null,null,null,0,null,null,null,null,0,0,0]
[null,null,null,null,null,null,null,0,null,null,null,null,0,0,0]
[null,null,null,null,null,null,null,0,null,null,null,null,0,0,0]
[null,null,null,null,null,null,null,0,null,null,null,null,0,0,0]
[null,null,null,null,null,null,null,0,null,null,null,null,0,0,0]
[null,null,null,null,null,null,null,0,null,null,null,null,0,0,0]
[null,null,null,null,null,null,null,0,null,null,null,null,0,0,0]
[null,null,null,null,null,null,null,0,null,null,null,null,0,0,0]
[null,null,null,null,null,null,null,0,null,null,null,null,0,0,0]
[null,null,null,null,null,null,null,0,null,null,null,null,0,0,0]
[null,null,null,null,null,null,null,0,null,null,null,null,0,0,0]
[null,null,null,null,null,null,null,0,null,null,null,null,0,0,0]
[null,null,null,null,null,null,null,0,null,null,null,null,0,0,0]
[null,null,null,null,null,null,null,0,null,null,null,null,0,0,0]
[null,null,null,null,null,null,null,0,null,null,null,null,0,0,0]
[null,null,null,null,null,null,null,0,null,null,null,null,0,0,0]
[null,null,null,null,null,null,null,0,null,null,null,null,0,0,0]
[null,null,null,null,null,null,null,0,null,null,null,null,0,0,0]
[null,null,null,null,null,null,null,0,null,null,null,null,0,0,0]
[null,null,null,null,null,null,null,0,null,null,null,null,0,0,0]
[null,null,null,null,null,null,null,0,null,null,null,null,0,0,0]
[null,null,null,null,null,null,null,0,null,null,null,null,0,0,0]
[null,null,null,null,null,null,null,0,null,null,null,null,0,0,0]
[null,null,null,null,null,null,null,0,null,null,null,null,0,0,0]
[null,null,null,null,null,null,null,0,null,null,null,null,0,0,0]
[null,null,null,null,null,null,null,0,null,null,null,null,0,0,0]
[null,null,null,null,null,null,null,0,null,null,null,null,0,0,0]

{"sheet":"COMBINE","index":5,"n_rows":12,"n_cols":8,"rows_kept":12,"cut":false,"hidden":false,"merged":[[0,0,0,7],[1,0,1,7],[2,0,2,7]]}
["CHAMPIONNAT DE FRANCE SPORT ADAPTE EQUITATION"]
["19 et 20 JUIN 2014 - LES RENES DE LA VIE - SAINT LO"]
["COMBINE - DIVISION 2 VETERANS"]
[]
[]
[null,"Nombre de partants :",{"$f":"COUNTA(B8:B12)","v":5}]
["Dossard","Cavalier","Cheval","Association","Total Dressage","Total CSO","TOTAL","Classement"]
[7,"MOREL Joël","AGON 2","Association Sportive des Vallées",{"$f":"IF(A8=0,0,VLOOKUP(A8,Dressage,9))","v":112},{"$f":"IF(A8=0,0,VLOOKUP(A8,CSO,7))","v":35.5},{"$f":"IF(A8=0,0,SUM(E8:F8))","v":147.5},1]
[4,"HALLER François","KACHEMIRE","ASCETH Mulhouse",{"$f":"IF(A9=0,0,VLOOKUP(A9,Dressage,9))","v":105.5},{"$f":"IF(A9=0,0,VLOOKUP(A9,CSO,7))","v":33},{"$f":"IF(A9=0,0,SUM(E9:F9))","v":138.5},2]
[6,"MONDIN François","DGUBA","Les rênes de la vie (CPFA Granville)",{"$f":"IF(A10=0,0,VLOOKUP(A10,Dressage,9))","v":92},{"$f":"IF(A10=0,0,VLOOKUP(A10,CSO,7))","v":34},{"$f":"IF(A10=0,0,SUM(E10:F10))","v":126},3]
[2,"COULM Sébastien","PADMA","APAPSH Gournay en bray",{"$f":"IF(A11=0,0,VLOOKUP(A11,Dressage,9))","v":93.5},{"$f":"IF(A11=0,0,VLOOKUP(A11,CSO,7))","v":25},{"$f":"IF(A11=0,0,SUM(E11:F11))","v":118.5},4]
[14,"GARDIEN Nolwenn","AGON 2","L'envol",{"$f":"IF(A12=0,0,VLOOKUP(A12,Dressage,9))","v":68},{"$f":"IF(A12=0,0,VLOOKUP(A12,CSO,7))","v":34.5},{"$f":"IF(A12=0,0,SUM(E12:F12))","v":102.5},5]

{"sheet":"EQUIFUN CLASSEMENT","index":6,"n_rows":21,"n_cols":10,"rows_kept":21,"cut":false,"hidden":false,"merged":[[0,0,0,9],[1,0,1,9],[2,0,2,9]]}
["CHAMPIONNAT DE FRANCE SPORT ADAPTE EQUITATION"]
["19 et 20 JUIN 2014 - LES RENES DE LA VIE - SAINT LO"]
["EQUIFUN - DIVISION 2 VETERANS"]
[]
[]
[null,"Nombre de partants :",{"$f":"COUNTA(B8:B21)","v":14}]
["Dossard","Cavalier","Cheval","Association","Juge 1","Juge 2","Pénalités","TOTAL","Temps","Classement"]
[6,"MONDIN François","DGUBA","Les rênes de la vie (CPFA Granville)",98,98,null,{"$f":"E8+F8-G8","v":196},null,1]
[2,"COULM Sébastien",0,"APAPSH Gournay en bray",94,99,null,193,null,2]
[14,"GARDIEN Nolwenn","AGON 2","L'envol",92,90,null,182,null,3]
[7,"MOREL Joël","AGON 2","Association Sportive des Vallées",81,84,null,165,null,4]
[3,"DESGREE Christophe","PADMA","ASES La source",79,82,2,159,null,5]
[4,"HALLER François","KACHEMIRE","ASCETH Mulhouse",78,80,2,156,null,6]
[5,"MARTINS Hervé","DIABOLO","ASES La source",69,76,2,143,null,7]
[1,"BURR Daniel","KABAN DU FEUGRET","ASCETH Mulhouse",72,72,2,142,null,8]
[8,"TRAVERS Patrick","KABAN DU FEUGRET","ASES La source",66,67,4,129,null,9]
[9,"LE CAM Kathie",0,"CLAP 22",null,null,null,0,null,"NP"]
[10,"SIMON Philippe",0,"ASFAA Foyer Renoir",null,null,null,0,null,"NP"]
[11,"MATORVIEZORNAVA Frédéric",0,"ASFAA Foyer Renoir",null,null,null,0,null,"NP"]
[12,"REAU Patrick",0,"ASFAA Foyer Renoir",null,null,null,0,null,"NP"]
[13,"BOISDRON François",0,"ASFAA Foyer Renoir",null,null,null,0,null,"NP"]